bitfinex/quotes_BTCUSD_20240811
["timestamp","ask_amount","ask_price","bid_price","bid_amount"]
[1723414899430,0.169862,58871.0,58870.0,0.0009097]
[1723414899632,0.169846,58877.0,58872.0,0.169859]
[1723414899891,0.4734,58881.0,58872.0,0.008]
[1723414899892,0.169857,58873.0,58872.0,0.008]
[1723414900166,0.169857,58873.0,58870.0,0.0009097]
[1723414900167,0.245862,58871.0,58870.0,0.0009097]
[1723414900412,2.5183415,58871.0,58870.0,0.0119097]
[1723414900640,0.509778,58849.0,58841.0,0.171]
[1723414900899,0.509778,58849.0,58841.0,0.340949]
[1723414900900,0.84963,58849.0,58841.0,0.340949]
[1723414901131,0.84963,58849.0,58841.0,0.171]
[1723414901363,0.84963,58849.0,58834.0,0.08184646]
[1723414901364,0.509778,58849.0,58837.0,0.04936212]
[1723414901618,1.03644492,58849.0,58837.0,0.04936212]
[1723414901860,0.1,58858.0,58837.0,0.04936212]
[1723414901861,0.0774,58861.0,58848.0,0.0945097]
[1723414902114,0.0774,58861.0,58850.0,0.339846]
[1723414902115,0.8874,58861.0,58850.0,0.339846]
[1723414902352,0.169907,58856.0,58849.0,0.08184646]
[1723414902609,0.169901,58858.0,58853.0,0.169914]
[1723414902891,0.169901,58858.0,58850.0,0.339844]
[1723414902892,0.169903,58857.0,58850.0,0.339844]
[1723414903118,0.169913,58854.0,58849.0,0.04952635]
[1723414903403,0.339808,58857.0,58851.0,0.16992]
[1723414903631,0.339808,58857.0,58851.0,0.169917]
[1723414903876,0.16991,58855.0,58853.0,0.003]
[1723414904106,0.01425251,58856.0,58848.0,0.0945097]
[1723414904107,0.169911,58854.0,58848.0,0.0945097]
[1723414904329,0.01425251,58853.0,58848.0,0.0945097]
[1723414904573,0.01425251,58853.0,58850.0,0.339846]
[1723414904817,0.01425251,58853.0,58852.0,0.169917]
[1723414905285,0.001,58854.0,58853.0,0.169914]
[1723414905519,0.01518501,58854.0,58851.0,0.169919]
[1723414905960,0.01418501,58854.0,58851.0,0.169919]
[1723414905961,0.01418501,58854.0,58853.0,0.007]
[1723414906227,0.01418501,58854.0,58850.0,0.01]
[1723414906499,0.509761,58851.0,58850.0,0.01]
[1723414906748,1.09421692,58851.0,58850.0,0.01]
[1723414907015,1.09421692,58851.0,58848.0,0.0009097]
[1723414907016,0.509778,58849.0,58848.0,0.0009097]
[1723414907494,0.86380542,58849.0,58848.0,0.0009097]
[1723414907713,0.52395342,58849.0,58848.0,0.0009097]
[1723414907961,0.86380542,58849.0,58848.0,0.0009097]
[1723414908228,1.02962034,58849.0,58848.0,0.0009097]
[1723414908452,1.36947234,58849.0,58848.0,0.0009097]
[1723414908909,1.02762034,58849.0,58848.0,0.0009097]
[1723414909396,1.36747234,58849.0,58848.0,0.0009097]
[1723414909638,1.02762034,58849.0,58848.0,0.0009097]
[1723414909852,1.03062034,58849.0,58848.0,0.0009097]
[1723414910056,1.02762034,58849.0,58848.0,0.0149097]
[1723414910495,1.03062034,58849.0,58848.0,0.0149097]
[1723414910694,1.03062034,58849.0,58848.0,0.0009097]
[1723414910918,1.83362034,58849.0,58848.0,0.0009097]
[1723414911331,2.17347234,58849.0,58848.0,0.0009097]
[1723414912409,1.83362034,58849.0,58848.0,0.0009097]
[1723414912614,1.32695342,58849.0,58848.0,0.0009097]
[1723414913065,1.32795342,58849.0,58848.0,0.0009097]
[1723414913282,1.32395342,58849.0,58848.0,0.0009097]
[1723414913534,1.32695342,58849.0,58848.0,0.0009097]
[1723414913750,1.33095342,58849.0,58848.0,0.0009097]
[1723414913976,1.66780542,58849.0,58848.0,0.0009097]
[1723414914193,1.66780542,58849.0,58848.0,0.0039097]
[1723414914194,0.18810142,58849.0,58848.0,0.0039097]
[1723414914405,0.86380542,58849.0,58848.0,0.0029097]
[1723414914620,0.52395342,58849.0,58848.0,0.0009097]
[1723414915039,0.52395342,58849.0,58848.0,0.0029097]
[1723414915479,1.88022434,58849.0,58848.0,0.0029097]
[1723414915691,2.74960388,58849.0,58848.0,0.0029097]
[1723414915907,2.77312748,58849.0,58848.0,0.0039097]
[1723414916138,2.77312748,58849.0,58848.0,0.0009097]
[1723414916343,2.77312748,58849.0,58848.0,0.0019097]
[1723414916559,2.77312748,58849.0,58848.0,0.0039097]
[1723414916560,3.11297948,58849.0,58848.0,0.0039097]
[1723414916787,1.005977,58832.0,58824.0,0.5410192]
[1723414917001,1.50974292,58832.0,58824.0,0.5410192]
[1723414917214,1.52377024,58832.0,58824.0,0.5410192]
[1723414917494,1.52377024,58832.0,58824.0,0.04994046]
[1723414917495,1.57677024,58832.0,58824.0,0.04994046]
[1723414917685,2.85087094,58832.0,58824.0,0.04994046]
[1723414918128,2.85087094,58832.0,58831.0,0.0041]
[1723414918798,2.33677024,58832.0,58831.0,0.0041]
[1723414919230,2.33677024,58832.0,58831.0,0.0031]
[1723414919454,2.34748674,58832.0,58831.0,0.0001]
[1723414919674,2.35648674,58832.0,58831.0,0.0021]
[1723414919891,2.99058744,58832.0,58831.0,0.0021]
[1723414920140,3.00920074,58832.0,58831.0,0.0001]
[1723414920371,3.01320074,58832.0,58831.0,0.0011]
[1723414920596,2.84805104,58832.0,58831.0,0.0011]
[1723414920829,0.287795,58825.0,58824.0,0.04994046]
[1723414921052,2.53156207,58825.0,58824.0,0.02103877]
[1723414921260,0.696395,58824.0,58821.0,0.8336097]
[1723414921523,3.95588007,58824.0,58821.0,0.8336097]
[1723414921728,4.29587707,58824.0,58821.0,0.8336097]
[1723414921970,1.900044,58822.0,58821.0,0.82429978]
[1723414922176,1.900044,58822.0,58813.0,0.009097]
[1723414922177,1.039937,58814.0,58813.0,0.009097]
[1723414922397,0.86044,58793.0,58792.0,0.009097]
[1723414922607,1.35443092,58793.0,58792.0,0.009097]
[1723414922837,1.36795594,58793.0,58792.0,0.009097]
[1723414923058,1.02777994,58793.0,58792.0,0.009097]
[1723414923288,1.48415594,58793.0,58792.0,0.009097]
[1723414923526,1.47415594,58793.0,58792.0,0.009097]
[1723414923783,1.47815594,58793.0,58792.0,0.009097]
[1723414923998,1.02777994,58793.0,58792.0,0.009097]
[1723414924213,0.86396502,58793.0,58792.0,0.009097]
[1723414924422,1.40195594,58793.0,58792.0,0.019097]
[1723414924646,1.52195594,58793.0,58792.0,0.019097]
[1723414924860,2.15911376,58793.0,58792.0,0.013097]
[1723414925283,2.88911376,58793.0,58792.0,0.014097]
[1723414925700,2.88911376,58793.0,58792.0,0.010097]
[1723414925905,2.89011376,58793.0,58792.0,0.010097]
[1723414926114,2.91602119,58793.0,58792.0,0.010097]
[1723414926287,2.76933937,58793.0,58792.0,0.009097]
[1723414926492,2.77333937,58793.0,58792.0,0.010097]
[1723414926695,2.76143194,58793.0,58792.0,0.011097]
[1723414926906,2.78567837,58793.0,58792.0,0.010097]
[1723414927101,2.77167837,58793.0,58792.0,0.009097]
[1723414927309,2.77167837,58793.0,58792.0,0.010097]
[1723414927310,3.28000407,58793.0,58792.0,0.010097]
[1723414927480,0.1928,58790.0,58770.0,0.05895748]
[1723414927697,1.69251343,58790.0,58770.0,0.009108]
[1723414927898,2.37289943,58790.0,58770.0,0.009108]
[1723414928105,3.05328543,58790.0,58770.0,0.009108]
[1723414928323,3.21743513,58790.0,58770.0,0.009108]
[1723414929499,3.22143513,58790.0,58789.0,0.010097]
[1723414929705,2.71709243,58790.0,58789.0,0.010097]
[1723414929914,2.68792934,58790.0,58789.0,0.010097]
[1723414930577,2.70192934,58790.0,58789.0,0.010097]
[1723414930994,2.68792934,58790.0,58789.0,0.010097]
[1723414931244,2.70192934,58790.0,58789.0,0.010097]
[1723414931456,2.84734273,58790.0,58789.0,0.010097]
[1723414931656,2.83334273,58790.0,58789.0,0.010097]
[1723414931805,2.82934273,58790.0,58789.0,0.009097]
[1723414932014,2.84534273,58790.0,58789.0,0.010097]
[1723414932210,2.67992934,58790.0,58789.0,0.010097]
[1723414932420,1.71374334,58790.0,58789.0,0.009097]
[1723414932741,2.04993634,58790.0,58789.0,0.010097]
[1723414932946,1.69774334,58790.0,58789.0,0.009097]
[1723414933142,0.02344642,58790.0,58789.0,0.334696]
[1723414933393,0.016,58790.0,58789.0,0.165597]
[1723414933572,0.016,58790.0,58789.0,0.674895]
[1723414933777,0.006,58790.0,58789.0,1.015094]
[1723414934195,0.02,58790.0,58789.0,1.15636982]
[1723414934623,0.006,58790.0,58789.0,1.15636982]
[1723414934829,0.007,58790.0,58789.0,1.16136982]
[1723414935033,0.011,58790.0,58789.0,1.16236982]
[1723414935462,0.170071,58799.0,58794.0,0.170083]
[1723414935630,0.4734,58800.0,58793.0,0.340172]
[1723414935983,0.4734,58800.0,58793.0,0.0892]
[1723414936095,0.4734,58800.0,58794.0,0.14127306]
[1723414936296,0.4734,58800.0,58795.0,0.14127283]
[1723414936529,0.4734,58800.0,58795.0,0.170082]
[1723414936737,0.170082,58795.0,58794.0,0.00878824]
[1723414936952,1.01422492,58795.0,58794.0,0.00878824]
[1723414937159,1.38738892,58795.0,58794.0,0.00878824]
[1723414937368,1.37738892,58795.0,58794.0,0.00878824]
[1723414937789,1.89937183,58795.0,58794.0,0.01378824]
[1723414937995,1.89937183,58795.0,58794.0,0.00878824]
[1723414937996,2.99167183,58795.0,58794.0,0.00878824]
[1723414938203,1.200675,58790.0,58789.0,0.009097]
[1723414938423,2.38768292,58790.0,58789.0,0.009097]
[1723414938860,2.40103085,58790.0,58789.0,0.009097]
[1723414939610,2.40503085,58790.0,58789.0,0.010097]
[1723414940360,2.47683085,58790.0,58789.0,0.010097]
[1723414940569,1.67664485,58790.0,58789.0,0.010097]
[1723414940771,1.07263693,58790.0,58789.0,0.010097]
[1723414940993,0.87282993,58790.0,58789.0,0.010097]
[1723414941199,1.03664485,58790.0,58789.0,0.010097]
[1723414941417,1.37683785,58790.0,58789.0,0.010097]
[1723414941620,1.03164485,58790.0,58789.0,0.010097]
[1723414941819,1.03764485,58790.0,58789.0,0.010097]
[1723414941937,1.03364485,58790.0,58789.0,0.009097]
[1723414942341,1.03764485,58790.0,58789.0,0.009097]
[1723414942795,0.19744393,58790.0,58789.0,0.009097]
[1723414942965,1.03564485,58790.0,58789.0,0.009097]
[1723414943280,1.03364485,58790.0,58789.0,0.010097]
[1723414943836,1.36783785,58790.0,58789.0,0.009097]
[1723414944330,1.39083785,58790.0,58789.0,0.014097]
[1723414944594,2.62092464,58790.0,58789.0,0.014097]
[1723414944845,2.61103085,58790.0,58789.0,0.009097]
[1723414945101,1.36983785,58790.0,58789.0,0.009097]
[1723414945361,1.98683785,58790.0,58789.0,0.009097]
[1723414946087,1.98283785,58790.0,58789.0,0.009097]
[1723414946360,1.98083785,58790.0,58789.0,0.15042065]
[1723414946609,1.98683785,58790.0,58789.0,0.15042065]
[1723414947106,1.62164485,58790.0,58789.0,0.15042065]
[1723414947346,1.98683785,58790.0,58789.0,0.15042065]
[1723414947810,2.5671999,58790.0,58789.0,0.009097]
[1723414948050,2.5611999,58790.0,58789.0,0.009097]
[1723414948326,2.54143085,58790.0,58789.0,0.009097]
[1723414948572,2.72016287,58790.0,58789.0,0.009097]
[1723414949042,3.13115587,58790.0,58789.0,0.009097]
[1723414949253,3.2621554,58790.0,58789.0,0.009097]
[1723414949454,3.2601554,58790.0,58789.0,0.009097]
[1723414949977,3.2621554,58790.0,58789.0,0.009097]
[1723414950220,1.901254,58784.0,58783.0,0.0009097]
[1723414950668,3.10382337,58784.0,58783.0,0.0009097]
[1723414950921,3.05296356,58784.0,58783.0,0.0009097]
[1723414951661,3.09569122,58784.0,58783.0,0.0009097]
[1723414951897,1.191022,58773.0,58772.0,0.001]
[1723414952145,1.191022,58773.0,58760.0,0.0150304]
[1723414952146,0.540541,58761.0,58760.0,0.0150304]
[1723414952439,0.86102,58753.0,58742.0,0.49107874]
[1723414952697,0.86102,58753.0,58737.0,0.0898]
[1723414952698,2.2254972,58753.0,58737.0,0.0898]
[1723414952929,2.3254972,58753.0,58737.0,0.0898]
[1723414953190,2.68960311,58753.0,58737.0,0.0898]
[1723414953672,2.70002366,58753.0,58737.0,0.0898]
[1723414953951,2.16546596,58753.0,58737.0,0.0898]
[1723414954435,2.14138421,58753.0,58737.0,0.0898]
[1723414954667,2.14138421,58753.0,58750.0,0.0848]
[1723414954668,1.47838421,58753.0,58750.0,0.0848]
[1723414954902,1.13797621,58753.0,58752.0,0.080286]
[1723414955128,1.14897621,58753.0,58752.0,0.010086]
[1723414955351,1.48938421,58753.0,58752.0,0.009086]
[1723414955625,1.47938421,58753.0,58752.0,0.009086]
[1723414955814,1.15997621,58753.0,58752.0,0.009086]
[1723414956051,1.13797621,58753.0,58752.0,0.009086]
[1723414956278,0.18334529,58753.0,58752.0,0.009086]
[1723414956502,0.01314129,58753.0,58752.0,0.15048872]
[1723414956775,0.01714129,58753.0,58752.0,0.15048872]
[1723414957001,0.01287693,58753.0,58752.0,1.15932072]
[1723414957242,0.340353,58763.0,58761.0,0.1578]
[1723414957243,0.170175,58763.0,58761.0,0.1578]
[1723414957474,0.510527,58763.0,58762.0,0.14140272]
[1723414957953,0.850877,58763.0,58762.0,0.14140272]
[1723414958420,0.851877,58763.0,58762.0,0.14140272]
[1723414958645,0.33399192,58763.0,58762.0,0.14140272]
[1723414958859,0.67434192,58763.0,58762.0,0.14140272]
[1723414959086,1.01569192,58763.0,58762.0,0.14140272]
[1723414959322,0.510534,58762.0,58761.0,0.0868]
[1723414959541,0.510534,58762.0,58761.0,0.22816702]
[1723414959762,0.170178,58762.0,58761.0,0.22816702]
[1723414961119,0.510534,58762.0,58761.0,0.22816702]
[1723414961901,0.510534,58762.0,58761.0,0.24116702]
[1723414961902,0.512534,58762.0,58761.0,0.24116702]
[1723414962106,0.172178,58762.0,58761.0,0.24116702]
[1723414962331,0.002,58762.0,58761.0,0.24116702]
[1723414962544,0.001,58762.0,58761.0,0.74470802]
[1723414962757,0.002,58762.0,58761.0,1.45487792]
[1723414962961,0.002,58762.0,58761.0,1.67003428]
[1723414963198,0.002,58762.0,58761.0,1.60133208]
[1723414963406,0.002,58762.0,58761.0,0.82549736]
[1723414963609,0.002,58762.0,58761.0,1.16585836]
[1723414963823,0.002,58762.0,58761.0,1.6013333]
[1723414964034,0.001,58762.0,58761.0,1.88605144]
[1723414964654,0.340258,58779.0,58772.0,0.0851]
[1723414964857,0.170135,58777.0,58773.0,0.14135636]
[1723414965075,0.170135,58777.0,58774.0,0.14135636]
[1723414965283,0.170135,58777.0,58775.0,0.14135636]
[1723414965489,1.3575,58803.0,58783.0,0.170117]
[1723414965707,0.1701,58789.0,58783.0,0.73780736]
[1723414965916,0.170097,58790.0,58783.0,0.73780736]
[1723414966131,0.340154,58797.0,58783.0,0.80690736]
[1723414966410,0.83204474,58800.0,58783.0,0.665551]
[1723414966619,0.170078,58797.0,58783.0,1.5228232]
[1723414966882,0.170074,58798.0,58783.0,1.5228232]
[1723414967105,0.170075,58798.0,58783.0,1.8630572]
[1723414967311,0.49190674,58800.0,58783.0,1.8630572]
[1723414967724,0.49190674,58800.0,58783.0,1.8730572]
[1723414967949,0.001829,58784.0,58783.0,1.8770572]
[1723414968156,0.000829,58784.0,58783.0,1.8630572]
[1723414968582,0.001829,58784.0,58783.0,1.8770572]
[1723414968800,0.001829,58784.0,58783.0,2.2132912]
[1723414969007,0.001829,58784.0,58783.0,1.9990572]
[1723414969183,0.001829,58784.0,58783.0,1.9910572]
[1723414969387,0.001829,58784.0,58783.0,1.77512323]
[1723414969648,0.002829,58784.0,58783.0,1.64683392]
[1723414969821,0.002829,58784.0,58783.0,1.78810701]
[1723414970032,0.002829,58784.0,58783.0,1.64683392]
[1723414970230,0.001829,58784.0,58783.0,1.77510594]
[1723414970660,0.001829,58784.0,58783.0,1.61983392]
[1723414970661,0.000829,58784.0,58783.0,1.61983392]
[1723414970792,0.000829,58784.0,58783.0,1.77510111]
[1723414970995,0.000829,58784.0,58783.0,1.79510111]
[1723414971191,0.000829,58784.0,58783.0,1.79710111]
[1723414971393,0.49190674,58800.0,58799.0,1.017052]
[1723414971603,0.49190674,58800.0,58799.0,1.49845023]
[1723414971802,0.0120338,58800.0,58799.0,1.49845023]
[1723414972039,0.0120338,58800.0,58799.0,1.66226515]
[1723414972040,0.000828,58800.0,58799.0,1.66226515]
[1723414972245,0.000828,58800.0,58799.0,1.76226515]
[1723414972452,0.000828,58800.0,58799.0,1.77226515]
[1723414972657,0.001828,58800.0,58799.0,1.78526515]
[1723414972887,0.001828,58800.0,58799.0,2.14540615]
[1723414973092,0.001828,58800.0,58799.0,2.20493211]
[1723414973353,0.000828,58800.0,58799.0,2.15540615]
[1723414973597,0.001828,58800.0,58799.0,2.16840615]
[1723414973932,0.001828,58800.0,58799.0,2.17040615]
[1723414974142,0.49107874,58818.0,58817.0,0.333918]
[1723414974342,0.50253357,58818.0,58817.0,0.333918]
[1723414974586,0.01145483,58818.0,58817.0,0.333918]
[1723414974790,0.34001,58822.0,58814.0,0.340053]
[1723414974959,0.000828,58824.0,58813.0,0.34006]
[1723414975155,0.170005,58822.0,58817.0,0.012]
[1723414975357,0.170008,58821.0,58817.0,0.012]
[1723414975562,0.01145483,58820.0,58817.0,0.170017]
[1723414975789,0.170003,58823.0,58817.0,0.012]
[1723414976172,0.18145883,58822.0,58817.0,0.012]
[1723414976344,0.18145883,58822.0,58818.0,0.170015]
[1723414976736,0.01145483,58822.0,58818.0,0.170015]
[1723414976939,0.18145883,58822.0,58818.0,0.170015]
[1723414977367,0.01145483,58822.0,58819.0,0.170013]
[1723414977799,0.000828,58824.0,58823.0,0.946607]
[1723414978011,0.000828,58824.0,58823.0,0.266601]
[1723414978215,0.000828,58824.0,58823.0,0.0966]
[1723414978664,0.000828,58824.0,58823.0,0.606604]
[1723414978888,0.000828,58824.0,58823.0,0.946607]
[1723414979098,0.000828,58824.0,58823.0,1.019507]
[1723414979313,0.000828,58824.0,58823.0,0.679504]
[1723414979517,0.000828,58824.0,58823.0,0.1825]
[1723414979722,0.000828,58824.0,58823.0,0.352501]
[1723414979929,0.000828,58824.0,58823.0,1.032507]
[1723414980150,0.000828,58824.0,58823.0,0.692504]
[1723414980361,0.000828,58824.0,58823.0,0.698504]
[1723414980599,0.40784092,58824.0,58823.0,0.006]
[1723414980848,2.57619301,58824.0,58823.0,0.006]
[1723414981066,3.03919001,58824.0,58823.0,0.019]
[1723414981277,0.170083,58795.0,58792.0,0.0905]
[1723414981487,0.170088,58793.0,58792.0,0.0905]
[1723414981697,0.510264,58793.0,58792.0,0.0905]
[1723414982381,0.170088,58793.0,58792.0,0.0905]
[1723414982601,0.340127,58802.0,58785.0,0.0719]
[1723414982819,0.340127,58802.0,58792.0,0.009]
[1723414982820,0.510264,58793.0,58792.0,0.009]
[1723414983061,1.18985492,58793.0,58792.0,0.01153288]
[1723414983270,1.62003092,58793.0,58792.0,0.00253288]
[1723414983479,1.62003092,58793.0,58792.0,0.01153288]
[1723414983783,1.54593092,58793.0,58792.0,0.01153288]
[1723414983923,2.1121907,58793.0,58792.0,0.01153288]
[1723414984133,2.61049761,58793.0,58792.0,0.01153288]
[1723414984572,2.64468005,58793.0,58792.0,0.01253288]
[1723414984777,2.63468005,58793.0,58792.0,0.01153288]
[1723414984982,2.61049761,58793.0,58792.0,0.01153288]
[1723414985226,2.62149761,58793.0,58792.0,0.00353288]
[1723414985434,2.78339092,58793.0,58792.0,0.00353288]
[1723414985857,2.6621929,58793.0,58792.0,0.00453288]
[1723414986085,2.6591929,58793.0,58792.0,0.00353288]
[1723414986309,2.65920754,58793.0,58792.0,0.00353288]
[1723414986522,2.29903154,58793.0,58792.0,0.00353288]
[1723414986732,2.30205035,58793.0,58792.0,0.00453288]
[1723414986946,2.82637605,58793.0,58792.0,0.00453288]
[1723414987173,2.90457605,58793.0,58792.0,8.8e-07]
[1723414987603,2.74042635,58793.0,58792.0,8.8e-07]
[1723414987833,2.71621187,58793.0,58792.0,8.8e-07]
[1723414988060,2.70643927,58793.0,58792.0,8.8e-07]
[1723414988285,0.34025,58781.0,58772.0,0.08184646]
[1723414988561,0.170144,58774.0,58764.0,0.34034]
[1723414988774,0.35148332,58780.0,58770.0,0.170152]
[1723414988984,0.16381492,58781.0,58770.0,0.170152]
[1723414989190,0.170141,58775.0,58769.0,0.170154]
[1723414989419,0.34022,58786.0,58770.0,0.0925]
[1723414989631,0.34022,58786.0,58776.0,0.25198246]
[1723414989632,0.170123,58781.0,58776.0,0.25198246]
[1723414989849,0.4734,58789.0,58777.0,0.0925]
[1723414990264,0.4734,58789.0,58777.0,0.262633]
[1723414990265,0.170118,58783.0,58777.0,0.262633]
[1723414990471,0.4734,58789.0,58777.0,0.262633]
[1723414990472,0.170121,58782.0,58777.0,0.262633]
[1723414990682,0.170112,58785.0,58777.0,0.432765]
[1723414990890,0.4734,58789.0,58782.0,0.170119]
[1723414991109,0.4734,58789.0,58778.0,0.510391]
[1723414991331,0.003,58781.0,58780.0,0.170125]
[1723414991577,0.170117,58783.0,58778.0,0.170131]
[1723414991890,0.17013,58779.0,58777.0,0.0965]
[1723414992065,0.001,58781.0,58776.0,0.007]
[1723414992066,0.510403,58777.0,58776.0,0.007]
[1723414992294,0.170157,58769.0,58768.0,0.0954]
[1723414992531,0.510472,58769.0,58768.0,0.0954]
[1723414992982,0.170157,58769.0,58768.0,0.0954]
[1723414993521,0.510534,58762.0,58761.0,0.0922]
[1723414993749,0.510534,58762.0,58759.0,0.0738]
[1723414993750,0.340343,58765.0,58759.0,0.0738]
[1723414993980,0.170183,58760.0,58759.0,0.0738]
[1723414994252,0.1,58776.0,58764.0,0.170171]
[1723414994473,0.170162,58768.0,58759.0,0.0738]
[1723414994722,0.171157,58769.0,58768.0,0.009]
[1723414995185,0.171157,58769.0,58759.0,0.243985]
[1723414995186,0.001,58760.0,58759.0,0.243985]
[1723414995421,0.340315,58769.0,58759.0,0.414173]
[1723414995662,0.49107874,58766.0,58756.0,0.0922]
[1723414995884,0.170201,58754.0,58753.0,0.0720108]
[1723414996323,0.510603,58754.0,58753.0,0.0720108]
[1723414996327,0.510603,58754.0,58753.0,0.0009108]
[1723414996572,1.191407,58754.0,58753.0,0.0009108]
[1723414996836,0.170201,58754.0,58753.0,0.0009108]
[1723414997313,0.851005,58754.0,58753.0,0.0009108]
[1723414997802,0.511603,58754.0,58753.0,0.0099108]
[1723414998079,0.511603,58754.0,58753.0,0.0109108]
[1723414998300,1.44632192,58754.0,58753.0,0.0019108]
[1723414998539,1.93888611,58754.0,58753.0,0.0049108]
[1723414998778,2.59672392,58754.0,58753.0,0.0039108]
[1723414998997,1.191428,58753.0,58733.0,0.173897]
[1723414999221,2.17524292,58753.0,58734.0,0.0852515]
[1723414999438,1.4662088,58753.0,58734.0,0.08184646]
[1723414999879,1.4662088,58753.0,58736.0,0.170251]
[1723415000329,1.4662088,58753.0,58734.0,0.08184646]
[1723415000830,1.4782088,58753.0,58752.0,0.010086]
[1723415001041,1.4872088,58753.0,58752.0,0.010086]
[1723415001501,1.4842088,58753.0,58752.0,0.010086]
[1723415001717,0.96798588,58753.0,58752.0,0.009086]
[1723415001940,0.97198588,58753.0,58752.0,0.010086]
[1723415002168,1.60798588,58753.0,58752.0,0.010086]
[1723415002370,0.97798588,58753.0,58752.0,0.010086]
[1723415002593,0.19716988,58753.0,58752.0,0.010086]
[1723415002806,0.02296588,58753.0,58752.0,0.104786]
[1723415003030,0.19316988,58753.0,58752.0,0.104786]
[1723415003254,0.86798588,58753.0,58752.0,0.104786]
[1723415003470,0.86198588,58753.0,58752.0,0.009086]
[1723415003712,0.01596588,58753.0,58752.0,0.614405]
[1723415004154,0.0781,58775.0,58752.0,0.614405]
[1723415004155,0.49107874,58775.0,58773.0,0.1633]
[1723415004595,0.00910861,58774.0,58773.0,0.1633]
[1723415005028,0.340235,58783.0,58773.0,0.1633]
[1723415005244,0.340253,58780.0,58773.0,0.1633]
[1723415005461,0.340263,58778.0,58773.0,0.1633]
[1723415005676,0.170139,58776.0,58773.0,0.1633]
[1723415005893,0.001,58774.0,58773.0,0.1723]
[1723415006318,0.01010861,58774.0,58773.0,0.1723]
[1723415006527,0.511429,58774.0,58773.0,0.1033]
[1723415006738,0.52053761,58774.0,58773.0,0.009]
[1723415006947,0.52053761,58774.0,58773.0,0.02]
[1723415007171,0.52153761,58774.0,58773.0,0.02]
[1723415007385,0.52153761,58774.0,58768.0,0.0913]
[1723415007386,0.18025161,58774.0,58769.0,0.170156]
[1723415007591,0.52153761,58774.0,58773.0,0.019]
[1723415007819,0.52153761,58774.0,58773.0,0.008]
[1723415007820,0.51953761,58774.0,58773.0,0.008]
[1723415008059,0.00910861,58774.0,58769.0,0.170157]
[1723415008263,0.01010861,58774.0,58773.0,0.02]
[1723415008490,0.01110861,58774.0,58773.0,0.02]
[1723415009195,0.01010861,58774.0,58773.0,0.617738]
[1723415009402,0.001,58774.0,58773.0,0.266446]
[1723415009616,0.170129,58779.0,58773.0,0.4077713]
[1723415009844,0.170129,58779.0,58774.0,0.3114673]
[1723415010070,0.00918114,58778.0,58777.0,0.510403]
[1723415010286,0.00918114,58778.0,58777.0,0.170134]
[1723415010532,0.170112,58785.0,58778.0,0.0963]
[1723415010760,0.26001492,58785.0,58772.0,0.436597]
[1723415010981,0.170132,58778.0,58773.0,0.15332001]
[1723415011272,0.171143,58774.0,58772.0,0.0963]
[1723415011490,0.001,58774.0,58766.0,0.1729]
[1723415011711,0.170159,58769.0,58767.0,0.14134282]
[1723415011933,0.001,58774.0,58759.0,0.1729]
[1723415012138,0.00918114,58768.0,58763.0,0.170174]
[1723415012365,0.001,58774.0,58764.0,0.14134951]
[1723415012615,0.170168,58766.0,58765.0,0.14134951]
[1723415013047,0.86001114,58766.0,58765.0,0.14134951]
[1723415013274,0.86001114,58766.0,58746.0,0.09184646]
[1723415013275,0.170183,58760.0,58755.0,0.170197]
[1723415013481,0.340362,58761.0,58756.0,0.14135909]
[1723415013690,0.095,58771.0,58757.0,0.14135909]
[1723415013956,0.00918114,58760.0,58758.0,0.14135909]
[1723415014172,0.072,58769.0,58755.0,0.08184646]
[1723415014412,0.072,58769.0,58756.0,0.14136898]
[1723415014413,0.00918114,58759.0,58756.0,0.14136898]
[1723415014613,0.340354,58763.0,58756.0,0.14136926]
[1723415014850,0.50413792,58768.0,58757.0,0.48175326]
[1723415014851,0.00918114,58758.0,58757.0,0.48175326]
[1723415015089,0.51107874,58784.0,58761.0,0.25202646]
[1723415015090,0.00918114,58762.0,58761.0,0.25202646]
[1723415015308,0.60408992,58776.0,58762.0,0.170175]
[1723415015510,0.340331,58767.0,58761.0,0.08184646]
[1723415015719,0.340286,58774.0,58762.0,0.14135645]
[1723415015936,0.340286,58774.0,58763.0,0.14135645]
[1723415015937,0.340298,58772.0,58763.0,0.14135645]
[1723415016195,0.170155,58770.0,58766.0,0.170165]
[1723415016408,0.440264,58778.0,58767.0,0.0889]
[1723415016409,0.340281,58775.0,58767.0,0.0889]
[1723415016641,0.17016,58768.0,58767.0,0.0889]
[1723415016885,0.17932514,58774.0,58769.0,0.170156]
[1723415017086,0.440267,58778.0,58768.0,0.0743]
[1723415017087,0.170157,58769.0,58768.0,0.0743]
[1723415017321,0.170152,58771.0,58768.0,0.0743]
[1723415017531,0.00918114,58773.0,58753.0,0.0009097]
[1723415017532,0.170201,58754.0,58753.0,0.0009097]
[1723415017768,0.851005,58754.0,58753.0,0.0009097]
[1723415017970,0.951005,58754.0,58753.0,0.0009097]
[1723415018218,0.96018614,58754.0,58753.0,0.0009097]
[1723415018427,1.46440306,58754.0,58753.0,0.0009097]
[1723415018640,1.53640306,58754.0,58753.0,0.0009097]
[1723415019957,1.54040306,58754.0,58753.0,0.0009097]
[1723415020173,1.53640306,58754.0,58753.0,0.0009097]
[1723415020450,1.87680506,58754.0,58753.0,0.0009097]
[1723415020653,2.72191538,58754.0,58753.0,0.0009097]
[1723415020864,2.72791538,58754.0,58753.0,0.0009097]
[1723415021308,2.72991538,58754.0,58753.0,0.0009097]
[1723415021513,2.75491538,58754.0,58753.0,0.0009097]
[1723415022533,2.75506869,58754.0,58753.0,0.0009097]
[1723415022752,2.38166669,58754.0,58753.0,0.0009097]
[1723415023469,2.72811569,58754.0,58753.0,0.0009097]
[1723415023924,2.70380506,58754.0,58753.0,0.0009097]
[1723415024135,2.3756585,58754.0,58753.0,0.0009097]
[1723415024570,2.3906585,58754.0,58753.0,0.0029097]
[1723415024784,2.3906585,58754.0,58753.0,0.0019097]
[1723415024994,2.3826585,58754.0,58753.0,0.0009097]
[1723415025207,2.3866585,58754.0,58753.0,0.0009097]
[1723415025434,2.3756585,58754.0,58753.0,0.0009097]
[1723415025872,2.3776585,58754.0,58753.0,0.0009097]
[1723415026113,3.1114625,58754.0,58753.0,7e-07]